bitfinex/quotes_BTCUSD_20211001
["timestamp","ask_amount","ask_price","bid_price","bid_amount"]
[1633096849910,0.35619413,47021.0,47018.0,0.233956]
[1633096850113,0.35619413,47021.0,47018.0,0.02128]
[1633096850116,0.70121468,47019.0,47018.0,0.02128]
[1633096850308,0.70121468,47019.0,47018.0,0.03988]
[1633096850311,0.219393,47019.0,47018.0,0.03988]
[1633096850722,0.22066365,47019.0,47018.0,0.03988]
[1633096852613,0.219393,47019.0,47018.0,0.03988]
[1633096852815,0.219393,47019.0,47014.0,0.1788048]
[1633096852816,0.219393,47018.0,47014.0,0.15833592]
[1633096853016,0.032,47019.0,47018.0,0.00524758]
[1633096853216,0.032,47019.0,47018.0,0.02384758]
[1633096853217,0.251393,47019.0,47018.0,0.02384758]
[1633096854019,0.219393,47019.0,47018.0,0.02384758]
[1633096854215,0.22117809,47019.0,47018.0,0.02384758]
[1633096854616,0.25217809,47019.0,47018.0,0.02384758]
[1633096854817,0.25217809,47019.0,47018.0,0.07797758]
[1633096854818,0.250393,47019.0,47018.0,0.07797758]
[1633096855321,0.031,47019.0,47018.0,1.47925312]
[1633096855522,0.031,47019.0,47018.0,0.29878412]
[1633096855922,0.031,47019.0,47018.0,0.97587589]
[1633096856118,0.35619413,47021.0,47018.0,0.97587589]
[1633096856332,0.35619413,47021.0,47020.0,1.25129556]
[1633096856519,0.35619413,47021.0,47020.0,0.38854383]
[1633096856724,0.35619413,47021.0,47020.0,0.39176603]
[1633096856725,0.35648469,47021.0,47020.0,0.39176603]
[1633096856924,0.00394,47026.0,47021.0,2.75426081]
[1633096857132,0.00394,47026.0,47025.0,2.6512009]
[1633096857330,0.00394,47026.0,47025.0,3.38231079]
[1633096857519,3.08214159,47050.0,47025.0,3.38231079]
[1633096857520,3.08214159,47050.0,47049.0,1.72420237]
[1633096857521,3.0809271,47050.0,47049.0,1.72420237]
[1633096857745,0.2499,47054.0,47049.0,1.72420237]
[1633096857747,0.2499,47054.0,47050.0,0.08406019]
[1633096857925,0.08406019,47054.0,47053.0,1.8430134]
[1633096858124,0.01,47069.0,47053.0,1.8430134]
[1633096858126,0.01,47069.0,47064.0,0.00122101]
[1633096858346,0.01,47069.0,47066.0,0.0012544]
[1633096858531,0.01,47069.0,47066.0,0.0739844]
[1633096858728,0.04089811,47067.0,47066.0,0.2935154]
[1633096858919,0.04089811,47067.0,47066.0,0.0739844]
[1633096859124,0.04089811,47067.0,47066.0,0.2935154]
[1633096859420,0.01,47069.0,47067.0,0.55]
[1633096859622,0.01,47069.0,47068.0,0.292261]
[1633096859823,0.318698,47082.0,47075.0,0.35704163]
[1633096859826,0.29412406,47082.0,47075.0,0.35704163]
[1633096860019,0.29412406,47082.0,47067.0,0.05306]
[1633096860020,0.29412406,47082.0,47076.0,0.21233892]
[1633096860022,0.0005301,47081.0,47076.0,0.21233892]
[1633096860220,0.0005301,47081.0,47077.0,0.18127889]
[1633096860420,0.0005301,47081.0,47078.0,0.0186]
[1633096860622,0.0315301,47081.0,47078.0,0.0186]
[1633096860823,0.05413,47080.0,47078.0,0.0186]
[1633096861025,0.0005301,47079.0,47078.0,0.0186]
[1633096861625,0.05413,47080.0,47078.0,0.25194184]
[1633096861822,0.031,47081.0,47078.0,0.25194184]
[1633096861823,0.031,47081.0,47079.0,0.27492053]
[1633096862023,0.00127226,47093.0,47080.0,0.01986178]
[1633096862220,0.00076746,47096.0,47080.0,0.01986178]
[1633096862221,0.00076746,47096.0,47086.0,0.10002557]
[1633096862425,0.00076746,47096.0,47087.0,0.26249198]
[1633096862426,0.1218563,47091.0,47087.0,0.26249198]
[1633096862821,0.0005301,47095.0,47087.0,0.26249198]
[1633096863027,0.00076746,47096.0,47087.0,0.26249198]
[1633096863028,0.00076746,47096.0,47087.0,0.47483298]
[1633096863225,0.00076746,47096.0,47088.0,1.00722053]
[1633096863428,0.00076746,47096.0,47088.0,0.57268961]
[1633096863622,0.01026697,47089.0,47088.0,0.35315861]
[1633096863827,0.0103311,47089.0,47088.0,0.35315861]
[1633096864027,0.0103311,47089.0,47088.0,0.26041953]
[1633096864028,0.0102711,47089.0,47088.0,0.26041953]
[1633096864224,0.01026697,47089.0,47088.0,0.26041953]
[1633096864422,0.01026697,47089.0,47088.0,0.07550435]
[1633096864624,0.01026697,47089.0,47088.0,0.32631486]
[1633096864626,0.03426697,47089.0,47088.0,0.32631486]
[1633096864822,0.00076746,47096.0,47093.0,0.31987735]
[1633096865025,0.00419352,47096.0,47095.0,0.0012427]
[1633096865228,0.00419352,47096.0,47095.0,0.18493587]
[1633096865230,0.00076746,47096.0,47095.0,0.18493587]
[1633096865425,0.00076746,47096.0,47095.0,0.45859687]
[1633096865627,0.0999,47100.0,47095.0,0.45859687]
[1633096865628,0.0999,47100.0,47096.0,0.4]
[1633096865825,0.0999,47100.0,47097.0,0.292261]
[1633096865826,0.08881434,47100.0,47097.0,0.292261]
[1633096866023,0.08881434,47100.0,47099.0,0.00126245]
[1633096866225,0.08881434,47100.0,47099.0,0.23939345]
[1633096866425,0.08881434,47100.0,47099.0,0.07273]
[1633096866426,0.08894779,47100.0,47099.0,0.07273]
[1633096866634,0.08894779,47100.0,47099.0,0.10173]
[1633096866636,0.19990729,47100.0,47099.0,0.10173]
[1633096867227,0.10794779,47100.0,47099.0,0.10173]
[1633096868024,0.08894779,47100.0,47099.0,0.07273]
[1633096868624,0.08894779,47100.0,47099.0,0.09873]
[1633096869422,0.08894779,47100.0,47096.0,0.212317]
[1633096869423,0.14436498,47100.0,47096.0,0.06582288]
[1633096869625,0.14436498,47100.0,47097.0,0.0186]
[1633096869626,0.14307779,47100.0,47097.0,0.0186]
[1633096869829,0.14294434,47100.0,47097.0,0.0186]
[1633096870030,0.21515055,47100.0,47098.0,0.21363978]
[1633096870225,0.21515055,47100.0,47098.0,0.0186]
[1633096870425,0.00012132,47099.0,47098.0,0.0186]
[1633096870629,0.00012132,47099.0,47098.0,0.0236]
[1633096870630,0.00065142,47099.0,47098.0,0.0236]
[1633096870831,0.00012132,47099.0,47098.0,0.0236]
[1633096871426,0.17894434,47100.0,47098.0,0.0236]
[1633096871427,0.14116566,47100.0,47098.0,0.0236]
[1633096872025,0.10110121,47100.0,47098.0,0.0186]
[1633096872426,0.0990884,47100.0,47098.0,0.0186]
[1633096872701,0.0990884,47100.0,47098.0,0.021]
[1633096872705,2.27058863,47099.0,47098.0,0.021]
[1633096872904,2.32528373,47099.0,47098.0,0.021]
[1633096873504,2.77941119,47099.0,47098.0,0.021]
[1633096873702,3.01184716,47099.0,47098.0,0.021]
[1633096874102,3.01184716,47099.0,47097.0,0.00516575]
[1633096874103,0.96184716,47099.0,47097.0,0.00516575]
[1633096874304,0.96184716,47099.0,47058.0,0.34239137]
[1633096874305,0.96184716,47099.0,47086.0,0.212414]
[1633096874306,0.2206476,47098.0,47086.0,0.212414]
[1633096874503,0.10162177,47087.0,47086.0,0.212414]
[1633096874706,0.10162177,47087.0,47086.0,0.40470498]
[1633096874707,0.05413,47087.0,47086.0,0.40470498]
[1633096874907,0.05413,47087.0,47086.0,0.91353458]
[1633096875503,0.21175516,47098.0,47086.0,0.76766458]
[1633096875704,0.03106719,47099.0,47098.0,0.17832442]
[1633096875903,0.03106719,47099.0,47098.0,0.23245442]
[1633096875905,0.03159729,47099.0,47098.0,0.23245442]
[1633096876106,0.00059729,47099.0,47098.0,0.23245442]
[1633096876502,0.00059729,47099.0,47098.0,0.05413]
[1633096876706,0.03259729,47099.0,47098.0,0.05413]
[1633096876905,0.02759729,47099.0,47098.0,0.05413]
[1633096877504,0.02883811,47099.0,47098.0,0.23035891]
[1633096877708,0.02883811,47099.0,47098.0,0.26755891]
[1633096878108,0.00124082,47099.0,47098.0,0.26755891]
[1633096878310,0.00124082,47099.0,47098.0,0.09133]
[1633096878710,0.03224082,47099.0,47098.0,0.09133]
[1633096878915,0.24603718,47099.0,47098.0,0.09133]
[1633096879109,0.25163382,47099.0,47098.0,0.09133]
[1633096879308,0.7980249,47099.0,47098.0,0.09133]
[1633096879510,0.25163382,47099.0,47098.0,0.09133]
[1633096880108,0.25163382,47099.0,47093.0,0.212372]
[1633096880109,0.25163382,47099.0,47093.0,0.12418023]
[1633096880111,0.10381777,47094.0,47093.0,0.12418023]
[1633096880310,0.37734077,47094.0,47093.0,0.12418023]
[1633096880509,0.37734077,47094.0,47086.0,0.2125475]
[1633096880512,0.74609931,47094.0,47086.0,0.2125475]
[1633096880713,0.00128524,47088.0,47086.0,0.2125475]
[1633096880910,0.20808715,47093.0,47086.0,0.2125475]
[1633096880912,0.05413,47092.0,47086.0,0.2125475]
[1633096881112,0.05413,47092.0,47087.0,0.00012136]
[1633096881311,0.05413,47092.0,47086.0,0.212414]
[1633096882115,0.05413,47092.0,47087.0,0.219531]
[1633096882313,0.05413,47092.0,47086.0,0.212414]
[1633096882314,0.05413,47092.0,47088.0,0.0186]
[1633096882513,0.05413,47092.0,47086.0,0.212414]
[1633096882514,0.05413,47092.0,47089.0,0.238131]
[1633096882713,0.05413,47092.0,47090.0,0.0186]
[1633096882716,0.07913,47092.0,47090.0,0.0186]
[1633096883713,0.219393,47091.0,47090.0,0.0186]
[1633096883913,0.05413,47091.0,47090.0,0.0186]
[1633096884115,0.05413,47091.0,47090.0,0.20118406]
[1633096884317,0.05413,47091.0,47090.0,0.01628187]
[1633096884519,0.05413,47091.0,47090.0,0.0186]
[1633096884716,0.05413,47091.0,47090.0,0.05544047]
[1633096884915,0.273523,47091.0,47090.0,0.05544047]
[1633096885315,0.47767665,47091.0,47090.0,0.05544047]
[1633096885517,0.273523,47091.0,47090.0,0.05544047]
[1633096885720,0.05413,47091.0,47090.0,0.05544047]
[1633096886116,0.05413,47091.0,47090.0,0.02344047]
[1633096886718,0.05413,47091.0,47090.0,0.06144047]
[1633096888019,0.05413,47091.0,47090.0,0.02344047]
[1633096888823,0.05413,47091.0,47090.0,0.31441147]
[1633096888824,0.08213,47091.0,47090.0,0.31441147]
[1633096889624,0.08213,47091.0,47090.0,0.09488047]
[1633096889821,0.14285483,47091.0,47090.0,0.09488047]
[1633096890219,0.12144966,47096.0,47090.0,0.32981047]
[1633096890220,0.03280012,47094.0,47090.0,0.32981047]
[1633096890421,0.03280012,47094.0,47090.0,0.82981047]
[1633096890423,0.06072821,47092.0,47090.0,0.82981047]
[1633096890622,0.06072821,47092.0,47091.0,0.219531]
[1633096890822,0.06072821,47092.0,47091.0,0.36663429]
[1633096891020,0.06072821,47092.0,47091.0,0.292261]
[1633096891021,0.23287786,47092.0,47091.0,0.292261]
[1633096891221,0.23283376,47092.0,47091.0,0.292261]
[1633096891422,0.23283779,47092.0,47091.0,0.292261]
[1633096891627,0.23283544,47093.0,47091.0,0.292261]
[1633096891825,0.23283544,47093.0,47091.0,0.07273]
[1633096892023,0.03280012,47094.0,47091.0,0.07273]
[1633096892025,0.38709377,47094.0,47091.0,0.07273]
[1633096892223,0.12142897,47092.0,47091.0,0.07273]
[1633096892426,0.23303184,47092.0,47091.0,0.07273]
[1633096892624,0.03280012,47094.0,47091.0,0.07273]
[1633096892625,0.23296949,47093.0,47091.0,0.07273]
[1633096892826,0.23296949,47093.0,47091.0,0.10573]
[1633096892827,0.12146045,47092.0,47091.0,0.10573]
[1633096893224,0.12146045,47092.0,47091.0,0.04409572]
[1633096893225,0.26303746,47092.0,47091.0,0.04409572]
[1633096893424,0.31591191,47092.0,47091.0,0.04409572]
[1633096893829,0.17562272,47092.0,47091.0,0.04409572]
[1633096894028,0.17562272,47092.0,47091.0,0.26362672]
[1633096894029,0.43749833,47092.0,47091.0,0.26362672]
[1633096894225,0.43749833,47092.0,47091.0,0.22062672]
[1633096894426,0.43749833,47092.0,47091.0,0.219277]
[1633096894825,0.43749833,47092.0,47091.0,0.255277]
[1633096895428,0.31600561,47092.0,47091.0,0.036]
[1633096896026,0.31600561,47092.0,47090.0,0.73117656]
[1633096896224,0.25682129,47091.0,47090.0,0.73117656]
[1633096896425,0.31095129,47091.0,47090.0,0.74977656]
[1633096896628,0.43231752,47091.0,47090.0,0.74977656]
[1633096896825,0.43231752,47091.0,47090.0,0.78177656]
[1633096897027,0.31095129,47091.0,47090.0,0.78177656]
[1633096897226,0.31095129,47091.0,47090.0,0.78661697]
[1633096897427,0.31095129,47091.0,47090.0,1.00589397]
[1633096897834,1.018223,47099.0,47090.0,1.00589397]
[1633096897835,1.018223,47099.0,47090.0,1.00713112]
[1633096897836,0.1214277,47094.0,47090.0,1.00713112]
[1633096898127,1.20036456,47099.0,47090.0,1.00713112]
[1633096898128,1.20036456,47099.0,47093.0,0.00129434]
[1633096898130,0.12150038,47097.0,47093.0,0.00129434]
[1633096898327,1.018223,47099.0,47093.0,0.00129434]
[1633096898328,1.018223,47099.0,47094.0,0.237877]
[1633096898329,0.12150757,47098.0,47094.0,0.237877]
[1633096898527,1.018223,47099.0,47094.0,0.237877]
[1633096898528,1.018223,47099.0,47095.0,0.05413]
[1633096898529,1.13972312,47099.0,47095.0,0.05413]
[1633096898729,1.13972312,47099.0,47097.0,0.19445217]
[1633096898928,1.13972312,47099.0,47098.0,0.07273]
[1633096898929,1.018223,47099.0,47098.0,0.07273]
[1633096899126,1.018223,47099.0,47098.0,0.29328945]
[1633096899331,1.018223,47099.0,47098.0,0.49328945]
[1633096899628,0.593655,47099.0,47098.0,1.04328945]
[1633096900029,0.593655,47099.0,47098.0,0.58661109]
[1633096900227,0.169092,47099.0,47098.0,0.58661109]
[1633096900627,0.0035,47105.0,47099.0,1.5]
[1633096900830,0.0035,47105.0,47104.0,0.00125706]
[1633096901029,0.0035,47105.0,47104.0,0.84728406]
[1633096901230,0.0035,47105.0,47104.0,0.90141406]
[1633096901430,0.01,47109.0,47108.0,1.87162413]
[1633096901634,0.01,47109.0,47108.0,0.41488546]
[1633096901832,0.01,47109.0,47108.0,1.20700817]
[1633096901833,0.01020621,47109.0,47108.0,1.20700817]
[1633096902035,0.01020621,47109.0,47108.0,1.40700817]
[1633096902230,0.01020621,47109.0,47108.0,1.61616085]
[1633096902430,0.01020621,47109.0,47108.0,1.86331421]
[1633096902833,0.01020621,47109.0,47108.0,2.21669721]
[1633096903634,0.01020621,47109.0,47108.0,3.01669721]
[1633096903830,0.01020621,47109.0,47108.0,3.02153583]
[1633096903832,6.21e-06,47109.0,47108.0,3.02153583]
[1633096904031,6.21e-06,47109.0,47108.0,3.48753583]
[1633096904231,0.047952,47127.0,47108.0,3.48753583]
[1633096904232,0.047952,47127.0,47115.0,0.51415573]
[1633096904234,0.12175984,47125.0,47115.0,0.51415573]
[1633096904430,0.047952,47127.0,47115.0,0.51415573]
[1633096904431,0.047952,47127.0,47123.0,0.29280542]
[1633096904432,0.04531788,47127.0,47123.0,0.29280542]
[1633096904633,0.04531788,47127.0,47124.0,0.47325538]
[1633096904636,0.05413,47126.0,47124.0,0.47325538]
[1633096904832,0.05413,47126.0,47125.0,1.44048999]
[1633096905034,0.05413,47126.0,47125.0,2.3890958]
[1633096905230,0.0999,47141.0,47125.0,2.3890958]
[1633096905231,0.0999,47141.0,47128.0,0.219144]
[1633096905234,0.06103436,47139.0,47128.0,0.219144]
[1633096905439,0.0999,47141.0,47128.0,0.219144]
[1633096905440,0.0999,47141.0,47140.0,0.00120773]
[1633096905634,0.0999,47141.0,47140.0,0.55594506]
[1633096905840,0.0999,47141.0,47140.0,0.7454364]
[1633096906034,0.0999,47141.0,47140.0,0.97371462]
[1633096906036,0.15403,47141.0,47140.0,0.97371462]
[1633096906234,0.1542266,47141.0,47140.0,0.97371462]
[1633096906434,0.1542266,47141.0,47140.0,0.77371462]
[1633096906635,0.1542266,47141.0,47140.0,0.97371462]
[1633096906836,0.1542266,47141.0,47140.0,1.00271462]
[1633096906837,0.1541366,47141.0,47140.0,1.00271462]
[1633096907033,0.1441366,47141.0,47140.0,1.00271462]
[1633096907634,0.1441366,47141.0,47140.0,1.50271462]
[1633096907834,0.1441366,47141.0,47140.0,1.50058567]
[1633096908034,0.1441366,47141.0,47140.0,1.30182529]
[1633096908235,0.1441366,47141.0,47140.0,1.36225876]
[1633096908434,0.96109945,47164.0,47140.0,1.36225876]
[1633096908435,0.00120018,47166.0,47141.0,2.5]
[1633096908702,0.00126068,47174.0,47164.0,0.00127421]
[1633096908707,0.21990397,47168.0,47164.0,0.00127421]
[1633096908901,0.00121048,47177.0,47164.0,0.00127421]
[1633096908902,0.00121048,47177.0,47164.0,0.01594556]
[1633096908904,0.219148,47167.0,47164.0,0.01594556]
[1633096909105,0.06094558,47175.0,47165.0,0.05413]
[1633096909106,0.19559072,47166.0,47165.0,0.05413]
[1633096909302,0.41473872,47166.0,47165.0,0.05413]
[1633096909501,0.41473872,47166.0,47164.0,0.01594556]
[1633096909502,0.41473872,47166.0,47164.0,5.56e-06]
[1633096909504,0.273278,47165.0,47164.0,5.56e-06]
[1633096909703,0.273278,47165.0,47153.0,0.636111]
[1633096909705,0.273278,47165.0,47153.0,0.5]
[1633096909708,0.327408,47165.0,47153.0,0.5]
[1633096909907,0.32808648,47165.0,47153.0,0.5]
[1633096910105,0.00175391,47154.0,47152.0,0.0186]
[1633096910404,0.00053323,47153.0,47152.0,0.0186]
[1633096910603,0.00053323,47153.0,47152.0,0.01985164]
[1633096910804,0.00053323,47153.0,47152.0,0.43952974]
[1633096911001,0.00053323,47153.0,47152.0,0.43752974]
[1633096911202,0.00053323,47153.0,47152.0,0.43699964]
[1633096911616,0.00053323,47153.0,47152.0,1.05731526]
[1633096912211,0.00053323,47153.0,47152.0,2.18131526]
[1633096912411,0.00042513,47188.0,47152.0,2.18131526]
[1633096912412,0.34678051,47179.0,47165.0,0.16056403]
[1633096912616,0.0012774,47185.0,47166.0,0.39293094]
[1633096912812,0.0012774,47185.0,47178.0,0.36532295]
[1633096912814,0.18024728,47185.0,47178.0,0.36532295]
[1633096913011,0.18024728,47185.0,47179.0,0.35882618]
[1633096913012,0.00121902,47180.0,47179.0,0.35882618]
[1633096913216,0.00121902,47180.0,47168.0,0.0005301]
[1633096913217,0.00121902,47180.0,47177.0,0.0186]
[1633096913218,0.05430667,47178.0,47177.0,0.0186]
[1633096913411,0.05430667,47178.0,47168.0,0.32145711]
[1633096913412,0.09441285,47176.0,47168.0,0.32145711]
[1633096913613,0.05413,47175.0,47169.0,0.0186]
[1633096913814,0.24247698,47173.0,47170.0,0.0186]
[1633096914015,0.05413,47172.0,47170.0,0.34122283]
[1633096914414,0.05413,47172.0,47171.0,0.219121]
[1633096914613,0.05413,47172.0,47171.0,0.0186]
[1633096914811,0.05436015,47172.0,47171.0,0.0186]
[1633096915012,0.05436015,47172.0,47171.0,0.0576]
[1633096915616,0.04936015,47172.0,47171.0,0.0576]
[1633096915813,0.00023015,47172.0,47171.0,0.0576]
[1633096916215,0.00023015,47172.0,47171.0,0.0186]
[1633096916413,0.22735022,47174.0,47171.0,0.1186]
[1633096916414,0.22258037,47174.0,47171.0,0.1186]
[1633096917013,0.22258037,47174.0,47171.0,0.1506]
[1633096917014,0.21768779,47174.0,47171.0,0.1506]
[1633096918014,0.05559682,47178.0,47171.0,0.1506]
[1633096918417,0.05559682,47178.0,47174.0,0.211991]
[1633096918617,0.05559682,47178.0,47175.0,0.0186]
[1633096918816,0.14998467,47178.0,47175.0,0.0186]
[1633096919018,0.14998467,47178.0,47171.0,0.1]
[1633096919019,0.14998467,47178.0,47171.0,0.02285746]
[1633096919020,0.18289507,47178.0,47171.0,0.02285746]
[1633096919217,0.18289507,47178.0,47172.0,0.0186]
[1633096919416,0.18289507,47178.0,47169.0,2.50414658]
[1633096919620,0.18289507,47178.0,47175.0,0.00126379]
[1633096919621,0.18169452,47178.0,47175.0,0.00126379]
[1633096919820,0.18169452,47178.0,47175.0,0.0186]
[1633096920019,0.34088029,47177.0,47175.0,0.0186]
[1633096920223,0.21672592,47177.0,47175.0,0.0186]
[1633096921018,0.24972592,47177.0,47175.0,0.0186]
[1633096921421,0.00123892,47176.0,47175.0,0.0186]
[1633096921619,0.00123892,47176.0,47171.0,0.1998]
[1633096921621,0.23068674,47176.0,47171.0,0.1998]
[1633096921825,0.00129114,47172.0,47171.0,0.1998]
[1633096922026,0.22041214,47172.0,47171.0,0.1998]
[1633096922422,0.44986023,47172.0,47171.0,0.1998]
[1633096922622,0.78737868,47172.0,47171.0,0.1998]
[1633096923021,0.81737868,47172.0,47171.0,0.1998]
[1633096923220,0.47986023,47172.0,47171.0,0.1998]
[1633096923423,0.25041214,47172.0,47171.0,0.1998]
[1633096923828,0.25041214,47172.0,47171.0,0.40954525]
[1633096923831,0.249121,47172.0,47171.0,0.40954525]
[1633096924022,0.03,47172.0,47171.0,0.40954525]
[1633096924223,0.03,47172.0,47171.0,0.1998]
[1633096924422,0.03,47172.0,47171.0,0.01516651]
[1633096924425,0.03123947,47172.0,47171.0,0.01516651]
[1633096924628,0.25036047,47172.0,47171.0,0.01516651]
[1633096924823,0.21924696,47172.0,47171.0,0.01516651]
[1633096925022,0.25224696,47172.0,47171.0,0.01516651]
[1633096925222,0.252121,47172.0,47171.0,0.01016651]
[1633096926222,0.219121,47172.0,47171.0,0.01016651]
[1633096926426,0.219121,47172.0,47165.0,0.13843289]
[1633096926430,0.52024173,47167.0,47165.0,0.13843289]
[1633096926727,0.219121,47166.0,47165.0,0.13843289]
[1633096926937,0.43546585,47166.0,47165.0,0.13843289]
[1633096927124,0.43546585,47166.0,47165.0,6.058e-05]
[1633096927126,0.43521097,47166.0,47165.0,6.058e-05]
[1633096927328,0.43521097,47166.0,47146.0,0.00128871]
[1633096927329,0.43521097,47166.0,47147.0,0.212114]
[1633096927332,0.24677591,47159.0,47147.0,0.212114]
[1633096927527,0.24677591,47159.0,47141.0,0.49]
[1633096927528,0.00125574,47155.0,47141.0,0.49]
[1633096927731,0.318233,47149.0,47141.0,0.49]
[1633096927932,0.2979968,47148.0,47141.0,0.49]
[1633096928129,0.2979968,47148.0,47131.0,0.00120123]
[1633096928130,0.1800554,47143.0,47139.0,0.19750085]
[1633096928327,0.1800554,47143.0,47131.0,0.00120123]
[1633096928329,0.26358448,47142.0,47131.0,0.00120123]
[1633096928529,0.26358448,47142.0,47132.0,0.219121]
[1633096928731,0.26358448,47142.0,47139.0,0.212149]
[1633096929129,0.42431,47151.0,47139.0,0.212149]
[1633096929130,0.28187673,47150.0,47139.0,0.212149]
[1633096929332,0.28187673,47150.0,47141.0,0.00123557]
[1633096929530,0.11494022,47157.0,47141.0,0.00123557]
[1633096929531,0.11494022,47157.0,47150.0,0.00018179]
[1633096929532,0.09858137,47152.0,47150.0,0.00018179]
[1633096929728,0.219121,47151.0,47150.0,0.00018179]
[1633096929928,0.43297172,47151.0,47148.0,0.18356068]
[1633096930130,0.43297172,47151.0,47144.0,0.07127454]
[1633096930131,0.219121,47151.0,47144.0,0.07127454]
[1633096930326,0.30578258,47152.0,47136.0,0.39450158]
[1633096930327,0.30578258,47152.0,47137.0,0.09675153]
[1633096930328,0.318217,47148.0,47137.0,0.09675153]
[1633096930526,0.30578258,47152.0,47137.0,0.09675153]
[1633096930730,0.30578258,47152.0,47151.0,0.00016966]
[1633096930932,0.30578258,47152.0,47141.0,2.3293415]
[1633096930934,0.52490358,47152.0,47141.0,2.3293415]
[1633096931131,0.21955017,47144.0,47141.0,2.3293415]
[1633096931332,0.21955017,47144.0,47142.0,0.219121]
[1633096931531,0.09858137,47152.0,47142.0,0.219121]
[1633096931532,0.09858137,47152.0,47143.0,9.697e-05]
[1633096931533,0.318205,47149.0,47143.0,9.697e-05]
[1633096931731,0.42426,47155.0,47143.0,9.697e-05]
[1633096931732,0.636394,47155.0,47143.0,9.697e-05]
[1633096931932,0.219121,47154.0,47143.0,9.697e-05]
[1633096932331,0.219121,47154.0,47141.0,0.06068558]
[1633096932533,0.219121,47154.0,47140.0,0.40181145]
[1633096932534,0.10827053,47150.0,47140.0,0.212132]
[1633096932938,0.318201,47147.0,47140.0,0.212132]
[1633096933232,0.031,47154.0,47140.0,0.15056896]
[1633096933433,0.031,47154.0,47142.0,0.08929228]
[1633096933434,0.09695555,47152.0,47142.0,0.08929228]
[1633096933636,0.17693161,47147.0,47142.0,0.08929228]
[1633096933834,0.09695555,47152.0,47142.0,0.08929228]
[1633096934031,0.03081318,47154.0,47142.0,0.08929228]
[1633096934233,0.219121,47153.0,47142.0,0.08929228]
[1633096934433,0.219121,47153.0,47140.0,0.2979886]
[1633096934434,0.318184,47150.0,47140.0,0.2979886]
[1633096934631,0.06128782,47151.0,47140.0,0.2979886]
[1633096934834,0.21218724,47145.0,47143.0,0.00483469]
[1633096935840,0.004,47150.0,47144.0,0.00120091]
[1633096936036,0.004,47150.0,47149.0,2.6512088]
[1633096936235,0.004,47150.0,47149.0,2.9783917]
[1633096936440,0.00406059,47150.0,47149.0,2.9789218]
[1633096936737,0.00406059,47150.0,47149.0,3.34881255]
[1633096936739,5.9e-07,47150.0,47149.0,3.34881255]
[1633096936936,0.24677591,47159.0,47153.0,0.212004]
[1633096937137,0.24677591,47159.0,47158.0,0.32072979]
[1633096937337,0.24677591,47159.0,47158.0,0.23892647]
[1633096937539,0.24688497,47159.0,47158.0,0.23892647]
[1633096937836,0.24688497,47159.0,47158.0,0.5724558]
[1633096938237,0.24696052,47159.0,47158.0,2.05641469]
[1633096938437,0.24696052,47159.0,47158.0,1.35588459]
[1633096938638,0.24696052,47159.0,47158.0,1.42244707]
[1633096938835,0.24696052,47159.0,47158.0,0.99846307]
[1633096939036,0.24696052,47159.0,47158.0,1.03746307]
[1633096939436,0.24696052,47159.0,47158.0,0.67927836]
[1633096939640,0.23696052,47159.0,47158.0,0.67927836]
[1633096939838,0.45449262,47159.0,47158.0,0.05891248]
[1633096940038,0.45608152,47159.0,47158.0,0.05891248]
[1633096940438,0.45608152,47159.0,47158.0,0.01991248]
[1633096940838,0.45608152,47159.0,47158.0,0.02474598]
[1633096941038,0.55949232,47159.0,47158.0,0.06274598]
[1633096941337,0.55949232,47159.0,47158.0,0.05774598]
[1633096941607,0.45608152,47159.0,47158.0,0.05774598]
[1633096942344,0.45608152,47159.0,47158.0,0.01974598]
[1633096942542,0.45608152,47159.0,47158.0,0.2121232]
[1633096942744,0.45608152,47159.0,47158.0,0.02100586]
[1633096942745,0.23696052,47159.0,47158.0,0.02100586]
[1633096943141,0.23696052,47159.0,47158.0,0.06100586]
[1633096943544,0.23696052,47159.0,47158.0,0.0610376]
[1633096944342,0.23696052,47159.0,47157.0,0.22260361]
[1633096944343,0.23696052,47159.0,47157.0,0.05905848]
[1633096944607,0.23696052,47159.0,47158.0,1.1686]
[1633096944745,0.23696052,47159.0,47158.0,1.38898227]
[1633096944747,0.23685146,47159.0,47158.0,1.38898227]
[1633096944945,0.23685146,47159.0,47158.0,0.237721]
[1633096944946,0.23696052,47159.0,47158.0,0.237721]
[1633096945147,0.23696052,47159.0,47158.0,0.232721]
[1633096945348,0.23696052,47159.0,47158.0,0.43395972]
[1633096945746,0.23696052,47159.0,47158.0,0.23395972]
[1633096946148,0.23696052,47159.0,47158.0,1.33395972]
[1633096946346,0.23696052,47159.0,47158.0,0.23395972]
[1633096947145,0.23696052,47159.0,47158.0,0.27595972]
[1633096948152,0.23696052,47159.0,47158.0,1.22595972]
[1633096948549,0.23696052,47159.0,47158.0,1.18395972]
[1633096948751,0.23696052,47159.0,47158.0,0.23395972]
[1633096948953,0.24790961,47165.0,47159.0,1.88677591]
[1633096949150,0.24790961,47165.0,47163.0,0.24334134]
[1633096949348,0.24790961,47165.0,47160.0,0.33257]
[1633096949349,0.24790961,47165.0,47164.0,0.237689]
[1633096949950,0.24790961,47165.0,47164.0,0.31449826]
[1633096950150,0.24790961,47165.0,47164.0,0.42626826]
[1633096950351,0.24790961,47165.0,47164.0,0.349459]
[1633096950953,0.24790961,47165.0,47164.0,0.0186]
[1633096950956,0.77562512,47165.0,47164.0,0.0186]
[1633096951150,0.77562512,47165.0,47159.0,0.23677591]
[1633096951153,0.46825719,47165.0,47159.0,0.23677591]
[1633096951353,0.24913619,47165.0,47159.0,0.23677591]
[1633096951853,0.24913619,47165.0,47160.0,0.18692411]
[1633096951855,0.56722019,47165.0,47160.0,0.18692411]
[1633096952055,0.29768704,47173.0,47160.0,0.18692411]
[1633096952058,0.9163,47187.0,47181.0,3.04874817]
[1633096952256,0.0002,47197.0,47181.0,3.04874817]
[1633096952257,0.00149888,47208.0,47206.0,0.64479969]
[1633096952453,0.0002,47211.0,47209.0,1.04803254]
[1633096952455,0.1056,47210.0,47209.0,1.04803254]
[1633096952651,0.1739577,47213.0,47209.0,1.04803254]
[1633096952652,0.1739577,47213.0,47209.0,0.9138344]
[1633096952653,0.0002,47213.0,47209.0,0.9138344]
[1633096952855,0.00148388,47224.0,47209.0,0.9138344]
[1633096952863,0.00054173,47230.0,47223.0,0.07883357]
[1633096953051,0.00054173,47230.0,47224.0,0.51107585]
[1633096953253,0.00054173,47230.0,47225.0,0.3180218]
[1633096953454,0.00054173,47230.0,47225.0,1.0745339]
[1633096953661,0.0002,47241.0,47225.0,1.0745339]
[1633096953662,0.28608598,47253.0,47251.0,0.07437319]
[1633096953860,0.28608598,47253.0,47250.0,0.0443]